[Event "*** Titled Tuesday Blitz"]
[Site "Chess.com"]
[Date "2021.03.09"]
[Round "9"]
[White "northridgehawk"]
[Black "HackingKid98"]
[Result "1-0"]
[WhiteElo "2346"]
[BlackElo "2447"]
[TimeControl "180+1"]
[EndTime "11:44:59 PST"]
[Termination "northridgehawk won by resignation"]

1. e4 {[%clk 0:03:00.9]} 1... c6 {[%clk 0:02:59.4]} 2. d4 {[%clk 0:02:59.8]}
2... d5 {[%clk 0:03:00.3]} 3. e5 {[%clk 0:02:59.9]} 3... Bf5 {[%clk 0:02:59.8]}
4. Nc3 {[%clk 0:03:00.2]} 4... e6 {[%clk 0:02:59.8]} 5. g4 {[%clk 0:02:44]} 5...
Bg6 {[%clk 0:02:59.1]} 6. Nge2 {[%clk 0:02:44.5]} 6... h6 {[%clk 0:02:57.3]} 7.
h4 {[%clk 0:02:44.8]} 7... c5 {[%clk 0:02:55.8]} 8. Be3 {[%clk 0:02:45.1]} 8...
Nd7 {[%clk 0:02:53.9]} 9. Qd2 {[%clk 0:02:44.3]} 9... Ne7 {[%clk 0:02:52.3]} 10.
f4 {[%clk 0:02:41.1]} 10... Nc6 {[%clk 0:02:51.3]} 11. h5 {[%clk 0:02:38]} 11...
Bh7 {[%clk 0:02:50.3]} 12. O-O-O {[%clk 0:02:37.1]} 12... Qa5 {[%clk 0:02:47.4]}
13. f5 {[%clk 0:02:31.7]} 13... cxd4 {[%clk 0:02:35.6]} 14. Nxd4 {[%clk
0:02:29.7]} 14... Nxd4 {[%clk 0:02:35.5]} 15. Bxd4 {[%clk 0:02:30.6]} 15... Bb4
{[%clk 0:02:35.3]} 16. Kb1 {[%clk 0:02:28.5]} 16... Rc8 {[%clk 0:02:31.1]} 17.
Bd3 {[%clk 0:02:22.5]} 17... Bc5 {[%clk 0:02:26.1]} 18. Bxc5 {[%clk 0:02:15.8]}
18... Qxc5 {[%clk 0:02:27]} 19. fxe6 {[%clk 0:02:14.4]} 19... fxe6 {[%clk
0:02:21]} 20. Bxh7 {[%clk 0:02:13.5]} 20... Rxh7 {[%clk 0:02:21.9]} 21. Qd3
{[%clk 0:02:12.9]} 21... Nf8 {[%clk 0:02:21.4]} 22. Rhf1 {[%clk 0:02:07.5]}
22... Rh8 {[%clk 0:02:15.9]} 23. Nb5 {[%clk 0:01:57.4]} 23... Rc6 {[%clk
0:01:59.5]} 24. Nd6+ {[%clk 0:01:52.8]} 24... Rxd6 {[%clk 0:01:59.3]} 25. exd6
{[%clk 0:01:53.7]} 25... Qxd6 {[%clk 0:02:00.2]} 26. c4 {[%clk 0:01:43.1]} 26...
Rg8 {[%clk 0:01:43.7]} 27. cxd5 {[%clk 0:01:27.6]} 27... Qxd5 {[%clk 0:01:44.6]}
28. Qe3 {[%clk 0:01:18.2]} 28... Qd6 {[%clk 0:01:45.5]} 29. Rxd6 {[%clk
0:01:17.1]} 1-0

[Event "*** Titled Tuesday Blitz"]
[Site "Chess.com"]
[Date "2021.03.09"]
[Round "9"]
[White "FlySooHigh"]
[Black "kai_nov"]
[Result "0-1"]
[WhiteElo "2647"]
[BlackElo "2442"]
[TimeControl "180+1"]
[EndTime "11:45:01 PST"]
[Termination "kai_nov won by resignation"]

1. e4 {[%clk 0:03:00.9]} 1... c5 {[%clk 0:02:58.1]} 2. Nf3 {[%clk 0:03:00.3]}
2... Nc6 {[%clk 0:02:55.7]} 3. Bb5 {[%clk 0:02:59.6]} 3... e6 {[%clk 0:02:54.5]}
4. O-O {[%clk 0:02:59.4]} 4... Nge7 {[%clk 0:02:52.6]} 5. c3 {[%clk 0:02:59.1]}
5... a6 {[%clk 0:02:44.4]} 6. Ba4 {[%clk 0:02:58.7]} 6... b5 {[%clk 0:02:40.3]}
7. Bc2 {[%clk 0:02:59.1]} 7... Bb7 {[%clk 0:02:37]} 8. d4 {[%clk 0:02:48.3]}
8... cxd4 {[%clk 0:02:36.4]} 9. Nxd4 {[%clk 0:02:48.2]} 9... Qc7 {[%clk
0:02:30.2]} 10. Bg5 {[%clk 0:02:34.8]} 10... Ng6 {[%clk 0:02:21.1]} 11. Nd2
{[%clk 0:02:05.1]} 11... Rc8 {[%clk 0:02:06]} 12. N2f3 {[%clk 0:01:59.9]} 12...
Bc5 {[%clk 0:01:55.9]} 13. Be3 {[%clk 0:01:49.9]} 13... Bb6 {[%clk 0:01:47.5]}
14. h4 {[%clk 0:01:37.7]} 14... Nxd4 {[%clk 0:01:34.8]} 15. Bxd4 {[%clk
0:01:36.8]} 15... O-O {[%clk 0:01:23.2]} 16. h5 {[%clk 0:01:31.8]} 16... Nf4
{[%clk 0:01:23]} 17. h6 {[%clk 0:01:31.8]} 17... Bxd4 {[%clk 0:01:20.3]} 18.
Qxd4 {[%clk 0:01:29.8]} 18... f6 {[%clk 0:01:10.4]} 19. hxg7 {[%clk 0:01:22.7]}
19... Ne2+ {[%clk 0:01:10.1]} 0-1

[Event "*** Titled Tuesday Blitz"]
[Site "Chess.com"]
[Date "2021.03.09"]
[Round "9"]
[White "atwalcb"]
[Black "olksuna"]
[Result "0-1"]
[WhiteElo "2536"]
[BlackElo "2671"]
[TimeControl "180+1"]
[EndTime "11:45:21 PST"]
[Termination "olksuna won by resignation"]

1. d4 {[%clk 0:03:00.9]} 1... Nf6 {[%clk 0:03:00.1]} 2. Bg5 {[%clk 0:03:00.3]}
2... e6 {[%clk 0:02:59.5]} 3. e4 {[%clk 0:02:56.9]} 3... h6 {[%clk 0:02:58.8]}
4. Bxf6 {[%clk 0:02:57]} 4... Qxf6 {[%clk 0:02:59.7]} 5. c3 {[%clk 0:02:57.3]}
5... d6 {[%clk 0:02:57.7]} 6. Bd3 {[%clk 0:02:56.8]} 6... e5 {[%clk 0:02:53.5]}
7. Ne2 {[%clk 0:02:54.7]} 7... Qd8 {[%clk 0:02:45.4]} 8. O-O {[%clk 0:02:54.6]}
8... Be7 {[%clk 0:02:45.6]} 9. f4 {[%clk 0:02:51.2]} 9... O-O {[%clk 0:02:45.4]}
10. Nd2 {[%clk 0:02:49.7]} 10... Nd7 {[%clk 0:02:37.7]} 11. Nf3 {[%clk
0:02:49.4]} 11... Bf6 {[%clk 0:02:34.9]} 12. Qe1 {[%clk 0:02:48.3]} 12... c5
{[%clk 0:02:23.6]} 13. Qg3 {[%clk 0:02:41]} 13... cxd4 {[%clk 0:02:20.1]} 14.
cxd4 {[%clk 0:02:40.9]} 14... Qb6 {[%clk 0:02:20.8]} 15. Kh1 {[%clk 0:02:28.5]}
15... Qxb2 {[%clk 0:02:17.9]} 16. Rfb1 {[%clk 0:02:12.9]} 16... Qa3 {[%clk
0:02:13.4]} 17. Rb3 {[%clk 0:02:12.8]} 17... Qa5 {[%clk 0:02:08.5]} 18. fxe5
{[%clk 0:02:07.1]} 18... dxe5 {[%clk 0:02:04.4]} 19. Rb5 {[%clk 0:02:02.2]}
19... Qa3 {[%clk 0:01:58.7]} 20. Rb3 {[%clk 0:01:56.3]} 20... Qe7 {[%clk
0:01:56.1]} 21. d5 {[%clk 0:01:22.8]} 21... Nc5 {[%clk 0:01:54.2]} 22. Rc3
{[%clk 0:01:23.4]} 22... Nxd3 {[%clk 0:01:48.8]} 23. Rxd3 {[%clk 0:01:24.3]}
23... b6 {[%clk 0:01:49.2]} 24. Rc3 {[%clk 0:01:19.1]} 24... Ba6 {[%clk
0:01:47]} 25. Qf2 {[%clk 0:01:17.7]} 25... Rac8 {[%clk 0:01:46.3]} 26. Rac1
{[%clk 0:01:18.1]} 26... Rxc3 {[%clk 0:01:43.5]} 27. Rxc3 {[%clk 0:01:19]} 27...
Qb4 {[%clk 0:01:39.9]} 28. Qe1 {[%clk 0:01:05.1]} 28... Bxe2 {[%clk 0:01:32.2]}
0-1

[Event "*** Titled Tuesday Blitz"]
[Site "Chess.com"]
[Date "2021.03.09"]
[Round "9"]
[White "QueenOfTactics90"]
[Black "kingnb"]
[Result "0-1"]
[WhiteElo "1965"]
[BlackElo "2562"]
[TimeControl "180+1"]
[EndTime "11:45:21 PST"]
[Termination "kingnb won by resignation"]

1. e4 {[%clk 0:01:45.7]} 1... d5 {[%clk 0:02:57.1]} 2. exd5 {[%clk 0:01:44.9]}
2... Nf6 {[%clk 0:02:57.2]} 3. d4 {[%clk 0:01:41.7]} 3... Bg4 {[%clk 0:02:56.5]}
4. f3 {[%clk 0:01:41]} 4... Bf5 {[%clk 0:02:55.8]} 5. c4 {[%clk 0:01:39.7]} 5...
e6 {[%clk 0:02:55.5]} 6. dxe6 {[%clk 0:01:39]} 6... Nc6 {[%clk 0:02:56.1]} 7.
exf7+ {[%clk 0:01:36.6]} 7... Kxf7 {[%clk 0:02:57]} 8. Be3 {[%clk 0:01:36.5]}
8... Bb4+ {[%clk 0:02:56.6]} 9. Nc3 {[%clk 0:01:35]} 9... Re8 {[%clk 0:02:57.5]}
10. Kf2 {[%clk 0:01:32.1]} 10... Rxe3 {[%clk 0:02:45.8]} 11. Kxe3 {[%clk
0:01:31.4]} 11... Nxd4 {[%clk 0:02:46.2]} 12. Qxd4 {[%clk 0:01:25.4]} 12... Qe7+
{[%clk 0:02:46.2]} 13. Kf2 {[%clk 0:01:20.7]} 13... Bc5 {[%clk 0:02:45.1]} 14.
Nge2 {[%clk 0:01:13.4]} 14... Rd8 {[%clk 0:02:42.7]} 15. Rd1 {[%clk 0:01:01.4]}
15... Qe5 {[%clk 0:02:17.8]} 16. Qxc5 {[%clk 0:00:24.3]} 16... Qxc5+ {[%clk
0:02:18.7]} 17. Ke1 {[%clk 0:00:21]} 17... Rxd1+ {[%clk 0:02:18.6]} 18. Nxd1
{[%clk 0:00:20.6]} 18... Qxc4 {[%clk 0:02:19.4]} 19. Ng3 {[%clk 0:00:18.8]}
19... Qb4+ {[%clk 0:02:19.5]} 20. Kf2 {[%clk 0:00:17]} 20... Be6 {[%clk
0:02:20.4]} 21. Bd3 {[%clk 0:00:16.4]} 21... Qd4+ {[%clk 0:02:20.3]} 22. Ke2
{[%clk 0:00:15.7]} 22... Nd5 {[%clk 0:02:21.2]} 23. Re1 {[%clk 0:00:14.3]} 23...
Nf4+ {[%clk 0:02:21.4]} 24. Kf1 {[%clk 0:00:12.9]} 24... Qxd3+ {[%clk
0:02:22.3]} 25. Kg1 {[%clk 0:00:12.3]} 25... Qd2 {[%clk 0:02:22.9]} 0-1

[Event "*** Titled Tuesday Blitz"]
[Site "Chess.com"]
[Date "2021.03.09"]
[Round "9"]
[White "BigAl"]
[Black "Airquake"]
[Result "1-0"]
[WhiteElo "2526"]
[BlackElo "2597"]
[TimeControl "180+1"]
[EndTime "11:45:36 PST"]
[Termination "BigAl won on time"]

1. Nf3 {[%clk 0:03:00.9]} 1... c5 {[%clk 0:02:54.9]} 2. g3 {[%clk 0:02:58.3]}
2... d5 {[%clk 0:02:54.4]} 3. Bg2 {[%clk 0:02:59.2]} 3... Nf6 {[%clk 0:02:55.3]}
4. O-O {[%clk 0:02:59.6]} 4... e6 {[%clk 0:02:56.2]} 5. d3 {[%clk 0:02:59.9]}
5... Bd6 {[%clk 0:02:56.8]} 6. Nbd2 {[%clk 0:03:00.7]} 6... d4 {[%clk
0:02:56.6]} 7. e4 {[%clk 0:03:01.6]} 7... dxe3 {[%clk 0:02:57.3]} 8. fxe3 {[%clk
0:03:01.6]} 8... Nc6 {[%clk 0:02:57.7]} 9. b3 {[%clk 0:02:56.6]} 9... O-O {[%clk
0:02:51.4]} 10. Bb2 {[%clk 0:02:56.5]} 10... e5 {[%clk 0:02:50.4]} 11. Qe2
{[%clk 0:02:41.8]} 11... Bc7 {[%clk 0:02:45.3]} 12. Nh4 {[%clk 0:02:38.2]} 12...
Bg4 {[%clk 0:02:30.3]} 13. Qf2 {[%clk 0:02:33.9]} 13... Nd5 {[%clk 0:02:21.4]}
14. a3 {[%clk 0:02:17.8]} 14... f5 {[%clk 0:02:01]} 15. h3 {[%clk 0:02:14]}
15... Bh5 {[%clk 0:02:00.9]} 16. Nxf5 {[%clk 0:02:07.5]} 16... g6 {[%clk
0:02:00.7]} 17. Nh6+ {[%clk 0:02:05.9]} 17... Kg7 {[%clk 0:02:00.7]} 18. Qxf8+
{[%clk 0:02:03.2]} 18... Qxf8 {[%clk 0:01:54.7]} 19. Rxf8 {[%clk 0:02:03.4]}
19... Rxf8 {[%clk 0:01:54.9]} 20. Bxd5 {[%clk 0:02:00.7]} 20... Kxh6 {[%clk
0:01:55.3]} 21. g4 {[%clk 0:01:57.2]} 1-0

[Event "*** Titled Tuesday Blitz"]
[Site "Chess.com"]
[Date "2021.03.09"]
[Round "9"]
[White "MoonlighT89"]
[Black "Atco84"]
[Result "1-0"]
[WhiteElo "2602"]
[BlackElo "2445"]
[TimeControl "180+1"]
[EndTime "11:46:05 PST"]
[Termination "MoonlighT89 won by resignation"]

1. e4 {[%clk 0:03:00.9]} 1... c5 {[%clk 0:02:58.7]} 2. Nf3 {[%clk 0:03:00.5]}
2... d6 {[%clk 0:02:58.3]} 3. d4 {[%clk 0:03:00.9]} 3... cxd4 {[%clk 0:02:58.1]}
4. Nxd4 {[%clk 0:03:01.8]} 4... Nf6 {[%clk 0:02:57.6]} 5. Nc3 {[%clk 0:03:02.5]}
5... a6 {[%clk 0:02:57.9]} 6. Nb3 {[%clk 0:03:03.1]} 6... e5 {[%clk 0:02:53.4]}
7. Bg5 {[%clk 0:03:02]} 7... Be6 {[%clk 0:02:51.5]} 8. Qd2 {[%clk 0:03:01.1]}
8... Nbd7 {[%clk 0:02:50.7]} 9. O-O-O {[%clk 0:03:01.1]} 9... Be7 {[%clk
0:02:49.5]} 10. h4 {[%clk 0:02:53.1]} 10... h6 {[%clk 0:02:37]} 11. Bxf6 {[%clk
0:02:47]} 11... Nxf6 {[%clk 0:02:37.9]} 12. Kb1 {[%clk 0:02:45.6]} 12... b5
{[%clk 0:02:21.8]} 13. f3 {[%clk 0:02:45.5]} 13... h5 {[%clk 0:02:19.1]} 14. Nd5
{[%clk 0:02:40.7]} 14... Nxd5 {[%clk 0:01:41.2]} 15. exd5 {[%clk 0:02:41.6]}
15... Bd7 {[%clk 0:01:36.3]} 16. Na5 {[%clk 0:02:36.8]} 16... Rc8 {[%clk
0:01:35.7]} 17. Bd3 {[%clk 0:02:26.1]} 17... Bxh4 {[%clk 0:01:13.7]} 18. Nb7
{[%clk 0:02:25.1]} 18... Qc7 {[%clk 0:00:45.4]} 19. Rxh4 {[%clk 0:02:03.9]}
19... Qxb7 {[%clk 0:00:42.5]} 20. Qg5 {[%clk 0:02:04.8]} 20... g6 {[%clk
0:00:22.3]} 21. Qf6 {[%clk 0:01:51.5]} 21... Rg8 {[%clk 0:00:20.3]} 22. Qxd6
{[%clk 0:01:50.4]} 22... Qc7 {[%clk 0:00:20.9]} 23. Qf6 {[%clk 0:01:50.2]} 23...
Bf5 {[%clk 0:00:17]} 24. d6 {[%clk 0:01:42.4]} 24... Qd8 {[%clk 0:00:12.9]} 25.
Qxe5+ {[%clk 0:01:39.6]} 25... Kf8 {[%clk 0:00:13.2]} 26. Bxf5 {[%clk 0:01:40]}
26... gxf5 {[%clk 0:00:11.6]} 27. Rxh5 {[%clk 0:01:36.4]} 1-0

[Event "*** Titled Tuesday Blitz"]
[Site "Chess.com"]
[Date "2021.03.09"]
[Round "9"]
[White "arminmusovic"]
[Black "kubal123"]
[Result "1-0"]
[WhiteElo "2485"]
[BlackElo "2269"]
[TimeControl "180+1"]
[EndTime "11:46:06 PST"]
[Termination "arminmusovic won by checkmate"]

1. a3 {[%clk 0:03:00.9]} 1... g6 {[%clk 0:02:52.6]} 2. Nc3 {[%clk 0:03:01.8]}
2... Bg7 {[%clk 0:02:46.9]} 3. e4 {[%clk 0:03:01.9]} 3... d6 {[%clk 0:02:47.8]}
4. d4 {[%clk 0:03:01.8]} 4... a6 {[%clk 0:02:47.7]} 5. Bg5 {[%clk 0:03:01.8]}
5... h6 {[%clk 0:02:47.4]} 6. Bh4 {[%clk 0:03:02.2]} 6... b5 {[%clk 0:02:45.6]}
7. f4 {[%clk 0:03:02.3]} 7... Bb7 {[%clk 0:02:45.8]} 8. Nf3 {[%clk 0:03:02.7]}
8... Nd7 {[%clk 0:02:46.3]} 9. e5 {[%clk 0:03:02.2]} 9... g5 {[%clk 0:02:31]}
10. fxg5 {[%clk 0:02:59.4]} 10... dxe5 {[%clk 0:02:31.2]} 11. g6 {[%clk
0:02:58]} 11... fxg6 {[%clk 0:02:29.2]} 12. Bd3 {[%clk 0:02:48.1]} 12... exd4
{[%clk 0:02:20.6]} 13. Bxg6+ {[%clk 0:02:46.2]} 13... Kf8 {[%clk 0:02:21]} 14.
O-O {[%clk 0:02:40.9]} 14... Ngf6 {[%clk 0:02:12.1]} 15. Nxd4 {[%clk 0:02:38.4]}
15... Nc5 {[%clk 0:02:06.5]} 16. b4 {[%clk 0:02:35.6]} 16... e5 {[%clk
0:01:47.4]} 17. Nf5 {[%clk 0:02:18.4]} 17... Ncd7 {[%clk 0:01:30.4]} 18. Qe1
{[%clk 0:01:53.2]} 18... Rg8 {[%clk 0:01:09.6]} 19. Qf2 {[%clk 0:01:43.5]} 19...
Bh8 {[%clk 0:01:00.1]} 20. Qg3 {[%clk 0:01:25.5]} 20... h5 {[%clk 0:00:31.7]}
21. Rad1 {[%clk 0:01:16.7]} 21... Qb8 {[%clk 0:00:25.7]} 22. Rxd7 {[%clk
0:01:13]} 22... Qa7+ {[%clk 0:00:25.5]} 23. Kh1 {[%clk 0:01:09.6]} 23... Nxd7
{[%clk 0:00:25.7]} 24. Be7# {[%clk 0:01:09.3]} 1-0

[Event "*** Titled Tuesday Blitz"]
[Site "Chess.com"]
[Date "2021.03.09"]
[Round "9"]
[White "Romadk"]
[Black "bogcsab"]
[Result "1-0"]
[WhiteElo "2323"]
[BlackElo "2154"]
[TimeControl "180+1"]
[EndTime "11:46:09 PST"]
[Termination "Romadk won by checkmate"]

1. d4 {[%clk 0:02:59.7]} 1... Nf6 {[%clk 0:02:59.3]} 2. Nf3 {[%clk 0:02:59.1]}
2... g6 {[%clk 0:02:59.9]} 3. c4 {[%clk 0:02:58.5]} 3... Bg7 {[%clk 0:03:00.2]}
4. Nc3 {[%clk 0:02:59.1]} 4... O-O {[%clk 0:03:00.5]} 5. Bg5 {[%clk 0:02:58.2]}
5... Bh6 {[%clk 0:02:59.9]} 6. Bxh6 {[%clk 0:02:56.4]} 6... Re8 {[%clk 0:03:00]}
7. e3 {[%clk 0:02:54.6]} 7... d6 {[%clk 0:03:00.2]} 8. Be2 {[%clk 0:02:53.6]}
8... Nbd7 {[%clk 0:03:00.3]} 9. O-O {[%clk 0:02:53.1]} 9... e5 {[%clk
0:03:00.4]} 10. dxe5 {[%clk 0:02:54]} 10... dxe5 {[%clk 0:03:00.4]} 11. Bg5
{[%clk 0:02:52.6]} 11... c6 {[%clk 0:02:55.4]} 12. Ne4 {[%clk 0:02:51.3]} 12...
Qe7 {[%clk 0:02:51.6]} 13. Qd6 {[%clk 0:02:35.6]} 13... Qxd6 {[%clk 0:02:49.4]}
14. Nxd6 {[%clk 0:02:34.8]} 14... Re6 {[%clk 0:02:45.9]} 15. Rfd1 {[%clk
0:02:30.5]} 15... Nc5 {[%clk 0:02:37.8]} 16. Bxf6 {[%clk 0:02:17.8]} 16... Rxf6
{[%clk 0:02:36.3]} 17. Ne8 {[%clk 0:02:17.3]} 17... Re6 {[%clk 0:02:25]} 18. Nc7
{[%clk 0:02:16.5]} 18... Re7 {[%clk 0:02:22.3]} 19. Nxa8 {[%clk 0:02:14.5]}
19... Be6 {[%clk 0:02:20.6]} 20. Nxe5 {[%clk 0:02:11.4]} 20... f6 {[%clk
0:02:20.1]} 21. Rd8+ {[%clk 0:02:08.8]} 21... Kg7 {[%clk 0:02:19.6]} 22. Nf3
{[%clk 0:02:04.3]} 22... Na4 {[%clk 0:02:12]} 23. b3 {[%clk 0:01:58.1]} 23...
Nc3 {[%clk 0:02:11.8]} 24. Bf1 {[%clk 0:01:57.8]} 24... Ne4 {[%clk 0:02:10.8]}
25. Rad1 {[%clk 0:01:56.1]} 25... Nc3 {[%clk 0:02:10.7]} 26. R1d2 {[%clk
0:01:53.2]} 26... Ne4 {[%clk 0:02:10.4]} 27. R2d3 {[%clk 0:01:50.5]} 27... Nc5
{[%clk 0:02:10.1]} 28. Rd1 {[%clk 0:01:48.7]} 28... Ne4 {[%clk 0:02:09.9]} 29.
Rb8 {[%clk 0:01:47.9]} 29... Nc3 {[%clk 0:02:09.3]} 30. Rdd8 {[%clk 0:01:47.3]}
30... Nxa2 {[%clk 0:02:07.5]} 31. Re8 {[%clk 0:01:45.7]} 31... Kf7 {[%clk
0:01:57.6]} 32. Rxe7+ {[%clk 0:01:43.9]} 32... Kxe7 {[%clk 0:01:58.3]} 33. Rxb7+
{[%clk 0:01:44.8]} 33... Kd6 {[%clk 0:01:58.5]} 34. Rxa7 {[%clk 0:01:43.5]}
34... Nc1 {[%clk 0:01:54.8]} 35. b4 {[%clk 0:01:40.9]} 35... c5 {[%clk
0:01:53.2]} 36. b5 {[%clk 0:01:40.3]} 36... Nb3 {[%clk 0:01:49.3]} 37. b6 {[%clk
0:01:38.4]} 37... Bc8 {[%clk 0:01:46.9]} 38. b7 {[%clk 0:01:36.7]} 38... Bxb7
{[%clk 0:01:45.9]} 39. Rxb7 {[%clk 0:01:37.5]} 39... Na5 {[%clk 0:01:44.9]} 40.
Rxh7 {[%clk 0:01:36.8]} 40... Nc6 {[%clk 0:01:44.4]} 41. Rh6 {[%clk 0:01:34.5]}
41... Ke6 {[%clk 0:01:44.7]} 42. Rxg6 {[%clk 0:01:33.7]} 42... Kf7 {[%clk
0:01:45.2]} 43. Rh6 {[%clk 0:01:30.2]} 43... Kg7 {[%clk 0:01:45.1]} 44. Rh5
{[%clk 0:01:30]} 44... Kg6 {[%clk 0:01:44.4]} 45. Rxc5 {[%clk 0:01:29]} 45...
Ne7 {[%clk 0:01:45.1]} 46. Rc7 {[%clk 0:01:23.9]} 46... Nf5 {[%clk 0:01:44.2]}
47. Bd3 {[%clk 0:01:20.1]} 47... Kh6 {[%clk 0:01:44.1]} 48. Bxf5 {[%clk
0:01:14.4]} 48... Kh5 {[%clk 0:01:40.4]} 49. Rh7# {[%clk 0:01:06.6]} 1-0

[Event "*** Titled Tuesday Blitz"]
[Site "Chess.com"]
[Date "2021.03.09"]
[Round "9"]
[White "Maddie"]
[Black "Matols"]
[Result "0-1"]
[WhiteElo "2082"]
[BlackElo "2280"]
[TimeControl "180+1"]
[EndTime "11:46:17 PST"]
[Termination "Matols won by checkmate"]

1. d4 {[%clk 0:03:00.9]} 1... Nf6 {[%clk 0:02:58.5]} 2. e3 {[%clk 0:03:00.6]}
2... e6 {[%clk 0:02:58.4]} 3. Bd3 {[%clk 0:03:00.5]} 3... c5 {[%clk 0:02:57.6]}
4. f4 {[%clk 0:02:59.9]} 4... cxd4 {[%clk 0:02:51.6]} 5. exd4 {[%clk 0:02:58.5]}
5... d5 {[%clk 0:02:44.3]} 6. Nf3 {[%clk 0:02:56.7]} 6... Nc6 {[%clk 0:02:43.4]}
7. O-O {[%clk 0:02:52.7]} 7... Ne4 {[%clk 0:02:42.1]} 8. Nbd2 {[%clk 0:02:46.6]}
8... f5 {[%clk 0:02:41.1]} 9. Ne5 {[%clk 0:02:46.2]} 9... Nxd4 {[%clk
0:02:29.5]} 10. Qh5+ {[%clk 0:02:41.1]} 10... g6 {[%clk 0:02:24.2]} 11. Nxg6
{[%clk 0:02:40.1]} 11... hxg6 {[%clk 0:02:13.2]} 12. Qxh8 {[%clk 0:02:39.8]}
12... Qb6 {[%clk 0:02:03.7]} 13. Nxe4 {[%clk 0:02:31.2]} 13... dxe4 {[%clk
0:01:49.2]} 14. Be3 {[%clk 0:02:28.5]} 14... Ne2+ {[%clk 0:01:37]} 15. Bxe2
{[%clk 0:02:27]} 15... Qxe3+ {[%clk 0:01:36.4]} 16. Kh1 {[%clk 0:02:27.9]} 16...
Qxe2 {[%clk 0:01:28.5]} 17. Qf6 {[%clk 0:02:23.1]} 17... Bd7 {[%clk 0:01:06.4]}
18. Qxg6+ {[%clk 0:02:21.8]} 18... Kd8 {[%clk 0:01:03.1]} 19. Qf6+ {[%clk
0:02:20.8]} 19... Kc7 {[%clk 0:01:02.1]} 20. Qc3+ {[%clk 0:02:18.6]} 20... Bc6
{[%clk 0:00:59.8]} 21. Qe5+ {[%clk 0:02:16.8]} 21... Bd6 {[%clk 0:00:57.4]} 22.
Qxe6 {[%clk 0:02:12.5]} 22... Rh8 {[%clk 0:00:33.3]} 23. Rad1 {[%clk 0:02:05.8]}
23... Rxh2+ {[%clk 0:00:20.9]} 24. Kxh2 {[%clk 0:01:55]} 24... Qh5+ {[%clk
0:00:19.8]} 25. Kg3 {[%clk 0:01:49.5]} 25... Qg4+ {[%clk 0:00:18.4]} 26. Kf2
{[%clk 0:01:22.1]} 26... Bc5+ {[%clk 0:00:18]} 27. Ke1 {[%clk 0:01:21.9]} 27...
Qg3+ {[%clk 0:00:16.3]} 28. Ke2 {[%clk 0:01:21.3]} 28... Qe3# {[%clk 0:00:16.1]}
0-1

[Event "*** Titled Tuesday Blitz"]
[Site "Chess.com"]
[Date "2021.03.09"]
[Round "9"]
[White "korkmaz16"]
[Black "enriquebutti"]
[Result "1-0"]
[WhiteElo "2444"]
[BlackElo "2228"]
[TimeControl "180+1"]
[EndTime "11:46:22 PST"]
[Termination "korkmaz16 won by resignation"]

1. e4 {[%clk 0:03:00.9]} 1... c5 {[%clk 0:02:59.3]} 2. Nf3 {[%clk 0:02:59.2]}
2... d6 {[%clk 0:02:58.8]} 3. Bb5+ {[%clk 0:02:57.4]} 3... Bd7 {[%clk
0:02:58.1]} 4. Bxd7+ {[%clk 0:02:56.9]} 4... Qxd7 {[%clk 0:02:58]} 5. O-O {[%clk
0:02:56.2]} 5... Nc6 {[%clk 0:02:57.5]} 6. c3 {[%clk 0:02:53.5]} 6... Nf6 {[%clk
0:02:56.4]} 7. d4 {[%clk 0:02:41.5]} 7... cxd4 {[%clk 0:02:52.9]} 8. cxd4 {[%clk
0:02:41.7]} 8... d5 {[%clk 0:02:51.9]} 9. e5 {[%clk 0:02:40]} 9... Ng8 {[%clk
0:02:50.4]} 10. Re1 {[%clk 0:02:23.2]} 10... e6 {[%clk 0:02:49.3]} 11. Nc3
{[%clk 0:02:23.5]} 11... h5 {[%clk 0:02:47.9]} 12. Bg5 {[%clk 0:02:15.7]} 12...
Nh6 {[%clk 0:02:46.6]} 13. Nh4 {[%clk 0:01:57.6]} 13... g6 {[%clk 0:02:43.1]}
14. Bf6 {[%clk 0:01:53.6]} 14... Rg8 {[%clk 0:02:40.8]} 15. Nf3 {[%clk
0:01:47.9]} 15... Nf5 {[%clk 0:02:39.1]} 16. Ne2 {[%clk 0:01:37]} 16... Be7
{[%clk 0:02:32.1]} 17. Bxe7 {[%clk 0:01:33]} 17... Qxe7 {[%clk 0:02:29]} 18. Ng3
{[%clk 0:01:33.9]} 18... Qb4 {[%clk 0:02:19.4]} 19. Nxf5 {[%clk 0:01:25.8]}
19... gxf5 {[%clk 0:02:17.3]} 20. a3 {[%clk 0:01:23.8]} 20... Qb6 {[%clk
0:02:11]} 21. b4 {[%clk 0:01:22.5]} 21... Rg4 {[%clk 0:02:09.1]} 22. h3 {[%clk
0:00:51.8]} 22... Re4 {[%clk 0:02:05]} 23. Qa4 {[%clk 0:00:47]} 23... Kf8 {[%clk
0:01:57.9]} 24. Rad1 {[%clk 0:00:25.3]} 24... Rc8 {[%clk 0:01:43.9]} 25. b5
{[%clk 0:00:20.7]} 25... Na5 {[%clk 0:01:38.1]} 26. Qb4+ {[%clk 0:00:21]} 26...
Kg7 {[%clk 0:01:36]} 27. Qe7 {[%clk 0:00:20.4]} 27... Nb3 {[%clk 0:01:32.4]} 28.
Ng5 {[%clk 0:00:16.4]} 28... Rxe1+ {[%clk 0:01:31.3]} 29. Rxe1 {[%clk
0:00:16.3]} 29... Qc7 {[%clk 0:01:30.7]} 30. Nxe6+ {[%clk 0:00:15.7]} 1-0